bitfinex-derivatives/quotes_SOLF0:USTF0_20240910
["timestamp","ask_amount","ask_price","bid_price","bid_amount"]
[1725982916884,7.378,135.81,135.75,15.93]
[1725982917428,122.91886605,135.94,135.74,3.74594753]
[1725982917614,7.378,135.9,135.8,15.93]
[1725982917925,1.11156245,135.89,135.8,15.93]
[1725982918521,10.99279516,135.9,135.8,15.93]
[1725982918711,1.11122944,135.89,135.8,15.93]
[1725982919523,3.6807,135.84,135.8,15.93]
[1725982919722,7.378,135.86,135.77,15.93]
[1725982919919,9.9495,135.85,135.77,15.93]
[1725982920130,7.378,135.85,135.79,15.93]
[1725982921023,7.378,135.85,135.77,19.55920392]
[1725982921214,7.378,135.85,135.81,15.93]
[1725982921829,11.0584,135.85,135.81,15.93]
[1725982922427,11.0584,135.85,135.73,19.60229036]
[1725982922428,23.308,135.88,135.79,15.93]
[1725982922619,7.378,135.85,135.76,15.93]
[1725982922925,7.378,135.85,135.73,3.67229036]
[1725982922926,7.378,135.85,135.78,15.93]
[1725982924523,7.378,135.87,135.78,15.93]
[1725982925021,7.378,135.85,135.73,3.67229036]
[1725982925220,7.378,135.83,135.77,15.93]
[1725982925789,7.378,135.83,135.78,3.60931054]
[1725982925812,2.6671,135.88,135.79,15.93]
[1725982926115,7.378,135.85,135.79,19.59767349]
[1725982926321,7.378,135.85,135.79,15.93]
[1725982926933,7.378,135.85,135.81,15.93]
[1725982927134,2.6671,135.88,135.81,15.93]
[1725982927135,1.2947,135.88,135.81,15.93]
[1725982927327,7.378,135.87,135.81,15.93]
[1725982928430,1.2947,135.88,135.81,15.93]
[1725982928631,7.378,135.89,135.83,15.93]
[1725982929093,23.308,135.94,135.83,15.93]
[1725982931436,23.308,135.94,135.84,3.62303896]
[1725982931824,7.378,135.94,135.87,15.93]
[1725982932027,7.378,135.94,135.87,19.64640664]
[1725982932249,7.378,135.94,135.9,3.6788]
[1725982932838,7.378,135.94,135.87,19.64640664]
[1725982933528,7.378,135.94,135.9,3.6787]
[1725982934540,7.378,135.94,135.91,3.6786]
[1725982934749,7.378,135.94,135.87,19.64640664]
[1725982935679,7.378,135.94,135.87,15.93]
[1725982935830,7.378,135.94,135.86,15.93]
[1725982936138,23.308,135.94,135.84,15.93]
[1725982936634,23.308,135.94,135.77,3.76970679]
[1725982936635,7.378,135.89,135.79,15.93]
[1725982936934,1.2671,135.88,135.79,15.93]
[1725982937141,7.378,135.87,135.79,19.52983138]
[1725982938031,23.308,135.87,135.78,15.93]
[1725982938244,7.378,135.87,135.77,25.46]
[1725982938741,7.378,135.87,135.77,29.1497739]
[1725982938904,7.378,135.87,135.77,25.46]
[1725982939038,7.378,135.85,135.74,25.46]
[1725982939247,7.378,135.85,135.75,3.59622204]
[1725982939433,7.378,135.85,135.74,25.46]
[1725982939736,7.378,135.85,135.75,3.75238735]
[1725982942069,7.378,135.85,135.74,25.46]
[1725982942541,7.378,135.85,135.75,3.67052364]
[1725982942934,7.378,135.85,135.74,25.46]
[1725982943637,7.378,135.85,135.75,3.70256936]
[1725982944143,7.378,135.85,135.74,25.46]
[1725982944341,7.378,135.85,135.74,29.21855728]
[1725982944744,7.378,135.85,135.78,3.6822]
[1725982944949,7.378,135.85,135.74,29.21855728]
[1725982945542,7.378,135.85,135.77,3.6823]
[1725982946440,7.378,135.87,135.77,3.6823]
[1725982946647,7.378,135.85,135.78,3.6821]
[1725982946946,25.46,135.86,135.74,25.46]
[1725982947146,7.378,135.83,135.75,3.6828]
[1725982947343,11.3951,135.82,135.74,25.46]
[1725982947643,15.16470752,135.82,135.76,3.6826]
[1725982947846,15.16470752,135.82,135.74,25.46]
[1725982948259,15.16470752,135.82,135.75,3.6827]
[1725982948469,32.838,135.8,135.68,25.46]
[1725982948834,3.6831,135.75,135.68,25.46]
[1725982949041,32.838,135.8,135.68,25.46]
[1725982949342,7.378,135.8,135.7,25.46]
[1725982949552,7.378,135.81,135.7,25.46]
[1725982951944,3.6829,135.76,135.7,25.46]
[1725982953044,3.6826,135.77,135.7,25.46]
[1725982953346,7.378,135.81,135.72,25.46]
[1725982953548,7.378,135.81,135.72,29.08297026]
[1725982954661,7.378,135.81,135.74,25.46]
[1725982955567,7.378,135.87,135.76,25.46]
[1725982955751,7.378,135.87,135.74,25.46]
[1725982955752,11.3469,135.87,135.79,25.46]
[1725982956052,2.592,135.87,135.81,25.46]
[1725982956245,3.64896083,135.9,135.81,25.46]
[1725982956450,3.9689,135.92,135.83,25.46]
[1725982956638,7.378,135.91,135.86,3.68]
[1725982956949,7.378,135.91,135.83,29.23163665]
[1725982957351,2.592,135.92,135.85,25.46]
[1725982957975,2.592,135.92,135.87,3.6796]
[1725982958144,2.592,135.92,135.85,29.16398998]
[1725982958351,2.592,135.92,135.88,3.6793]
[1725982959148,2.592,135.92,135.89,3.6792]
[1725982959449,2.592,135.92,135.85,29.16398998]
[1725982959643,2.592,135.92,135.87,3.6796]
[1725982960042,2.592,135.92,135.86,3.68]
[1725982960255,2.592,135.92,135.83,25.46]
[1725982960451,2.592,135.92,135.83,29.08006772]
[1725982960648,2.592,135.92,135.87,3.6797]
[1725982961060,2.592,135.92,135.83,29.08006772]
[1725982961759,2.592,135.92,135.83,25.46]
[1725982962350,2.592,135.92,135.85,3.6801]
[1725982962554,2.592,135.92,135.82,3.73840376]
[1725982962752,2.592,135.92,135.8,25.46]
[1725982962947,2.592,135.92,135.84,3.6806]
[1725982963253,2.592,135.92,135.8,29.10600206]
[1725982963654,2.592,135.92,135.83,3.6806]
[1725982964645,2.592,135.92,135.84,3.6805]
[1725982965553,2.592,135.92,135.8,29.10600206]
[1725982965948,2.592,135.92,135.8,25.46]
[1725982966161,15.9,135.9,135.8,15.9]
[1725982966358,5.07216964,135.89,135.8,15.9]
[1725982966756,7.378,135.88,135.8,15.9]
[1725982969149,23.278,135.88,135.78,15.9]
[1725982970553,23.278,135.88,135.81,3.6813]
[1725982971055,7.378,135.88,135.83,3.6808]
[1725982971250,7.378,135.88,135.8,15.9]
[1725982971861,7.378,135.91,135.82,15.9]
[1725982973163,7.378,135.91,135.87,3.6797]
[1725982973357,7.378,135.91,135.82,15.9]
[1725982973759,7.378,135.88,135.72,10.99017026]
[1725982973971,11.14815701,135.88,135.78,15.9]
[1725982974960,11.14815701,135.88,135.79,3.70165558]
[1725982975164,11.14815701,135.88,135.8,15.9]
[1725982977069,11.14815701,135.88,135.78,15.9]
[1725982977070,15.9,135.87,135.78,15.9]
[1725982977482,1.3128,135.86,135.78,15.9]
[1725982978153,1.3128,135.86,135.8,3.6815]
[1725982978557,1.3128,135.86,135.76,15.9]
[1725982978761,1.2874,135.85,135.79,3.6817]
[1725982978964,1.2874,135.85,135.76,15.9]
[1725982979363,1.2874,135.85,135.8,3.6816]
[1725982980070,1.2874,135.85,135.79,3.6818]
[1725982980367,1.2874,135.85,135.8,3.6816]
[1725982980744,1.2874,135.85,135.78,15.9]
[1725982981163,1.3128,135.86,135.78,15.9]
[1725982982069,1.3128,135.86,135.82,3.6811]
[1725982982260,1.3128,135.86,135.8,15.9]
[1725982982476,8.6806,135.9,135.82,15.9]
[1725982982666,12.37120696,135.9,135.85,3.6802]
[1725982982871,8.6806,135.9,135.82,15.9]
[1725982983071,7.378,135.9,135.84,15.9]
[1725982983571,2.6781,135.93,135.84,15.9]
[1725982983970,2.6781,135.93,135.86,15.9]
[1725982984380,2.6781,135.93,135.84,15.9]
[1725982984675,7.378,135.92,135.84,15.9]
[1725982985272,7.378,135.92,135.86,15.9]
[1725982986166,7.378,135.92,135.82,25.43]
[1725982986670,7.378,135.92,135.86,3.68]
[1725982987479,7.378,135.92,135.87,3.6797]
[1725982988469,7.378,135.92,135.86,3.6799]
[1725982989372,7.378,135.92,135.85,3.6802]
[1725982990366,7.378,135.92,135.84,3.6805]
[1725982990673,32.808,135.92,135.8,25.43]
[1725982990871,1.11090983,135.91,135.82,3.681]
[1725982991178,32.808,135.92,135.8,25.43]
[1725982991474,1.3501,135.9,135.82,3.681]
[1725982991684,7.378,135.88,135.82,3.681]
[1725982991977,7.378,135.88,135.81,3.6812]
[1725982992173,1.2926,135.87,135.81,3.6812]
[1725982992568,7.378,135.86,135.81,3.6812]
[1725982992780,7.378,135.86,135.73,32.7967]
[1725982992781,7.378,135.86,135.8,3.6816]
[1725982992988,8.7463,135.86,135.8,3.6816]
[1725982993368,12.4204539,135.86,135.8,3.6816]
[1725982993579,8.7463,135.86,135.81,3.6813]
[1725982993877,1.3683,135.86,135.78,25.43]
[1725982995676,1.3683,135.86,135.82,3.681]
[1725982995871,1.2926,135.87,135.78,25.43]
[1725982996123,1.2926,135.87,135.82,3.6809]
[1725982996675,1.2926,135.87,135.81,3.6813]
[1725982996881,1.2926,135.87,135.76,25.43]
[1725982997080,8.7065,135.86,135.76,25.43]
[1725982997279,8.7065,135.86,135.79,3.6818]
[1725982997582,8.7065,135.86,135.76,25.43]
[1725982997980,8.7065,135.86,135.8,3.6815]
[1725982999778,8.7065,135.86,135.79,3.6818]
[1725982999982,32.808,135.85,135.79,3.6818]
[1725983000578,32.808,135.85,135.74,25.43]
[1725983000778,7.378,135.85,135.76,25.43]
[1725983001028,1.3285,135.86,135.78,25.43]
[1725983001385,1.3285,135.86,135.79,3.76022099]
[1725983001574,7.378,135.88,135.79,3.76022099]
[1725983001886,7.378,135.88,135.8,25.43]
[1725983002087,7.378,135.89,135.8,29.14381215]
[1725983002684,7.378,135.89,135.84,3.6806]
[1725983003886,7.378,135.89,135.85,3.6803]
[1725983004190,7.378,135.89,135.8,29.14381215]
[1725983004785,7.378,135.89,135.8,25.43]
[1725983004988,32.808,135.89,135.78,25.43]
[1725983005376,32.808,135.89,135.74,25.43]
[1725983005377,25.43,135.87,135.74,25.43]
[1725983005587,2.6135,135.86,135.75,6.19988819]
[1725983005793,2.6135,135.86,135.76,6.19988819]
[1725983005983,2.6135,135.86,135.74,25.43]
[1725983006184,18.5235,135.86,135.76,15.91]
[1725983006978,18.5235,135.86,135.79,3.6819]
[1725983007483,18.5235,135.86,135.8,3.6816]
[1725983008089,2.6135,135.86,135.76,25.46]
[1725983008590,2.6135,135.86,135.8,3.6815]
[1725983008778,2.6135,135.86,135.76,25.46]
[1725983009694,2.6135,135.86,135.8,3.6815]
[1725983010486,2.6135,135.86,135.79,3.6819]
[1725983010695,7.378,135.84,135.74,25.46]
[1725983010894,32.838,135.83,135.73,3.70340356]
[1725983011096,32.838,135.83,135.7,25.46]
[1725983011097,36.58818417,135.83,135.7,25.46]
[1725983011294,36.58818417,135.83,135.71,6.20168954]
[1725983011496,36.58818417,135.83,135.7,25.46]
[1725983011801,36.58818417,135.83,135.72,25.46]
[1725983011992,11.12818417,135.83,135.76,3.6827]
[1725983012392,7.378,135.83,135.77,29.11330779]
[1725983012598,9.9915,135.86,135.77,25.46]
[1725983012790,9.9915,135.86,135.79,25.46]
[1725983012791,7.378,135.86,135.79,25.46]
[1725983013297,7.378,135.86,135.85,3.6803]
[1725983013500,8.7379,135.89,135.79,25.46]
[1725983015200,8.7379,135.89,135.82,3.6809]
[1725983015802,8.7379,135.89,135.83,3.6808]
[1725983016996,8.7379,135.89,135.82,3.681]
[1725983017193,34.1979,135.89,135.82,3.681]
[1725983019204,34.1979,135.89,135.81,3.6812]
[1725983019400,34.1979,135.89,135.75,29.23439787]
[1725983019611,32.838,135.86,135.76,6.19827934]
[1725983019807,32.838,135.86,135.75,29.23439787]
[1725983019808,2.7357,135.85,135.8,3.6816]
[1725983020197,2.7357,135.85,135.81,3.6814]
[1725983021297,7.378,135.87,135.78,25.46]
[1725983022309,7.378,135.88,135.78,25.46]
[1725983022512,2.6077,135.89,135.8,25.46]
[1725983023505,2.6077,135.89,135.86,3.6799]
[1725983023714,2.6077,135.89,135.8,25.46]
[1725983023913,2.6077,135.89,135.85,3.6801]
[1725983024113,2.6077,135.89,135.8,25.46]
[1725983024520,2.6077,135.89,135.85,3.6801]
[1725983025189,2.6077,135.89,135.86,3.6799]
[1725983026022,2.6077,135.89,135.85,3.6802]
[1725983026513,2.6077,135.89,135.8,25.46]
[1725983027220,28.0677,135.89,135.78,25.46]
[1725983027422,28.0677,135.89,135.79,6.19951926]
[1725983027726,28.0677,135.89,135.78,25.46]
[1725983027917,28.0677,135.89,135.79,6.19813634]
[1725983028130,28.0677,135.89,135.84,3.6804]
[1725983030115,2.6077,135.89,135.84,3.6804]
[1725983030513,2.6077,135.89,135.85,3.6802]
[1725983031418,2.6077,135.89,135.86,3.68]
[1725983031617,2.6077,135.89,135.81,6.20210529]
[1725983031814,2.6077,135.89,135.87,3.6796]
[1725983032013,1.3274,135.93,135.84,19.62955777]
[1725983032318,1.3274,135.93,135.87,3.6795]
[1725983032630,1.3274,135.93,135.84,19.49815288]
[1725983032809,1.3274,135.93,135.9,3.6789]
[1725983033020,7.378,135.95,135.86,15.9]
[1725983035328,7.378,135.95,135.9,3.6788]
[1725983035516,7.378,135.95,135.86,15.9]
[1725983036125,7.378,135.95,135.9,3.6787]
[1725983036725,7.378,135.95,135.91,3.6787]
[1725983037030,7.378,135.95,135.88,15.9]
[1725983038041,8.6879,135.96,135.9,15.9]
[1725983038224,11.10127498,135.97,135.93,3.678]
[1725983038441,7.378,135.97,135.9,15.9]
[1725983038669,7.378,135.97,135.94,3.6777]
[1725983039132,7.378,135.97,135.89,3.73702422]
[1725983039133,7.378,135.97,135.96,3.6773]
[1725983039328,7.378,136.01,135.96,3.6773]
[1725983039727,7.378,136.01,135.97,3.677]
[1725983040034,7.378,136.01,135.94,15.9]
[1725983040338,7.378,136.01,135.97,3.6769]
[1725983041134,7.378,136.01,135.94,15.9]
[1725983042639,23.278,136.01,135.92,15.9]
[1725983043544,7.378,136.01,135.92,15.9]
[1725983044136,7.378,136.01,135.94,15.9]
[1725983044453,7.378,136.03,135.94,15.9]
[1725983044938,7.378,136.03,135.95,3.66997792]
[1725983044939,11.07630757,136.03,135.95,3.66997792]
[1725983045243,7.378,136.03,135.94,15.9]
[1725983046052,23.278,136.03,135.94,19.58755977]
[1725983046736,23.278,136.03,135.94,15.9]
[1725983046937,23.278,136.03,135.92,19.62544692]
[1725983047261,23.278,136.03,135.92,15.9]
[1725983047439,23.278,136.01,135.92,15.9]
[1725983050040,23.278,136.01,135.9,15.9]
[1725983050537,23.278,136.01,135.9,19.52030905]
[1725983050737,7.362,135.95,135.9,19.52030905]
[1725983051129,7.362,136.0,135.9,19.52030905]
[1725983051330,7.362,135.96,135.9,19.52030905]
[1725983052539,7.362,135.95,135.9,19.52030905]
[1725983052743,7.362,135.95,135.88,15.9]
[1725983052950,11.0398,135.95,135.89,3.70942812]
[1725983053141,7.362,135.95,135.89,3.70942812]
[1725983053548,11.0397,135.95,135.88,15.9]
[1725983053757,11.0397,135.95,135.89,3.72819606]
[1725983054043,7.362,135.95,135.88,19.65358798]
[1725983054247,3.6782,135.93,135.88,15.9]
[1725983054543,3.6782,135.93,135.87,19.4924045]
[1725983054844,3.6784,135.92,135.87,15.9]
[1725983055044,7.362,135.96,135.87,15.9]
[1725983055233,7.362,135.96,135.85,15.9]
[1725983055435,3.6788,135.91,135.85,15.9]
[1725983055636,23.262,135.95,135.85,15.9]
[1725983056451,3.6784,135.92,135.85,15.9]
[1725983056643,23.262,135.95,135.85,15.9]
[1725983057243,3.6783,135.93,135.85,15.9]
[1725983057442,23.262,135.95,135.85,15.9]
[1725983058241,3.679,135.9,135.85,15.9]
[1725983058545,23.262,135.95,135.85,15.9]
[1725983058753,3.6788,135.91,135.85,15.9]
[1725983058964,23.262,135.95,135.85,15.9]
[1725983059451,3.6791,135.9,135.85,15.9]
[1725983060059,23.262,135.95,135.85,15.9]
[1725983063152,7.362,135.91,135.83,15.9]
[1725983063353,9.9044,135.9,135.83,15.9]
[1725983065460,9.9044,135.9,135.82,3.67167461]
[1725983065652,25.8044,135.9,135.81,15.9]
[1725983066244,15.9,135.88,135.77,15.9]
[1725983066450,15.9,135.84,135.74,15.9]
[1725983066755,15.9,135.84,135.67,6.20726338]
[1725983066756,8.7394,135.83,135.67,6.20726338]
[1725983066953,15.9,135.82,135.72,15.9]
[1725983067159,15.9,135.82,135.74,3.6831]
[1725983067752,15.9,135.82,135.72,19.60213549]
[1725983068961,15.9,135.82,135.76,3.6826]
[1725983069654,15.9,135.82,135.72,19.60213549]
[1725983069939,11.3358,135.83,135.72,19.60213549]
[1725983070151,11.3358,135.83,135.75,25.46]
[1725983070359,11.3358,135.83,135.76,3.63017264]
[1725983070556,11.3358,135.83,135.72,25.46]
[1725983071045,11.3358,135.83,135.72,29.11117121]
[1725983072264,11.3358,135.83,135.79,3.6817]
[1725983072767,11.3358,135.83,135.75,25.46]
[1725983073558,10.0461,135.83,135.75,25.46]
[1725983074060,10.0461,135.83,135.81,3.6812]
[1725983074260,10.0461,135.83,135.75,25.46]
[1725983074455,10.0461,135.83,135.8,3.6815]
[1725983074762,10.0461,135.83,135.75,25.46]
[1725983075064,10.0461,135.83,135.8,3.6815]
[1725983075455,10.0461,135.83,135.75,25.46]
[1725983076532,10.0461,135.83,135.78,3.682]
[1725983076590,10.0461,135.83,135.75,25.46]
[1725983077559,10.0461,135.83,135.8,3.6816]
[1725983078663,10.0461,135.83,135.75,25.46]
[1725983079850,10.0461,135.83,135.79,3.6819]
[1725983080052,10.0461,135.83,135.75,25.46]
[1725983080451,10.0461,135.83,135.78,3.682]
[1725983080868,10.0461,135.83,135.73,25.46]
[1725983081064,10.0461,135.83,135.77,3.6824]
[1725983081262,10.0461,135.83,135.73,25.46]
[1725983081662,10.0461,135.83,135.77,3.6823]
[1725983084966,7.362,135.83,135.78,25.46]
[1725983085182,25.46,135.89,135.78,25.46]
[1725983085873,25.46,135.89,135.81,3.6812]
[1725983086277,7.362,135.88,135.78,25.46]
[1725983086285,7.362,135.86,135.8,3.6815]
[1725983086571,4.0288,135.85,135.75,25.46]
[1725983086764,7.74785393,135.85,135.8,3.6816]
[1725983088059,33.20785393,135.85,135.79,3.6818]
[1725983089067,33.20785393,135.85,135.8,3.6816]
[1725983092174,23.65785393,135.85,135.81,3.6814]
[1725983092720,23.65785393,135.85,135.75,15.91]
[1725983093064,4.0288,135.85,135.75,15.91]
[1725983093374,4.0288,135.85,135.83,3.6807]
[1725983093570,4.0288,135.85,135.77,15.91]
[1725983093766,2.6565,135.85,135.79,15.91]
[1725983093973,7.362,135.86,135.84,3.6803]
[1725983094274,3.61898799,135.89,135.79,15.91]
[1725983094568,7.362,135.89,135.85,3.6802]
[1725983094775,11.073792,135.89,135.85,3.6802]
[1725983095975,7.362,135.92,135.81,15.91]
[1725983096869,7.362,135.92,135.86,3.68]
[1725983097074,7.362,135.92,135.81,15.91]
[1725983098069,15.91,135.88,135.79,1.0]
[1725983098277,2.6678,135.87,135.79,1.0]
[1725983098664,7.362,135.86,135.79,1.0]
[1725983099277,7.362,135.86,135.82,3.6809]
[1725983100578,23.272,135.86,135.79,1.0]
[1725983100784,15.91,135.84,135.79,1.0]
[1725983101075,15.91,135.8,135.7,15.91]
[1725983101304,27.3031,135.87,135.7,15.91]
[1725983101305,11.3931,135.87,135.7,15.91]
[1725983101470,7.362,135.83,135.74,15.91]
[1725983101673,7.362,135.83,135.8,3.6814]
[1725983101876,7.362,135.83,135.74,19.67886517]
[1725983102079,7.362,135.83,135.72,15.91]
[1725983102270,15.91,135.82,135.76,3.6826]
[1725983102470,15.91,135.82,135.73,3.66134112]
[1725983102772,15.91,135.82,135.72,15.91]
[1725983102977,7.362,135.83,135.72,15.91]
[1725983103181,7.362,135.83,135.72,3.77438867]
[1725983103182,15.91,135.81,135.72,3.77438867]
[1725983103389,15.91,135.79,135.7,15.91]
[1725983103681,15.91,135.77,135.61,11.0599]
[1725983103890,15.91,135.77,135.67,15.91]
[1725983104218,19.58049893,135.77,135.67,15.91]
[1725983104530,15.91,135.77,135.67,15.91]
[1725983104880,3.76114673,135.76,135.67,15.91]
[1725983105278,3.76114673,135.76,135.65,15.91]
[1725983105279,15.91,135.75,135.65,15.91]
[1725983105791,1.3431,135.74,135.65,15.91]
[1725983105991,1.3431,135.74,135.69,3.6845]
[1725983106170,1.3431,135.74,135.65,15.91]
[1725983106171,2.6565,135.74,135.65,15.91]
[1725983107389,2.6565,135.74,135.69,3.6845]
[1725983107743,2.6565,135.74,135.65,15.91]
[1725983107807,2.6565,135.74,135.63,19.51969857]
[1725983107970,15.91,135.73,135.63,15.91]
[1725983108578,2.6565,135.74,135.64,3.74603759]
[1725983108779,2.6565,135.74,135.6,0.9945]
[1725983108780,15.91,135.73,135.6,0.9945]
[1725983108980,15.91,135.73,135.65,3.6856]
[1725983109283,15.91,135.71,135.6,16.9045]
[1725983109485,15.91,135.71,135.61,3.61076299]
[1725983109682,15.91,135.69,135.61,3.61076299]
[1725983109995,2.6268,135.68,135.61,3.61076299]
[1725983110186,2.6268,135.68,135.64,3.6858]
[1725983110477,2.6268,135.68,135.61,3.61076299]
[1725983110683,2.6268,135.68,135.65,3.6855]
[1725983111034,2.6268,135.68,135.6,19.55729311]
[1725983111272,2.6268,135.68,135.6,15.91]
[1725983111677,2.6268,135.68,135.65,3.6855]
[1725983111974,2.6268,135.68,135.6,15.91]
[1725983114295,2.6268,135.68,135.64,3.6858]
[1725983114785,2.6268,135.68,135.6,15.91]
[1725983115183,2.6268,135.68,135.59,3.62700988]
[1725983115378,15.91,135.67,135.59,3.62700988]
[1725983116083,15.91,135.67,135.63,3.6862]
[1725983116483,2.6268,135.68,135.63,3.6862]
[1725983116682,18.5368,135.68,135.63,3.6862]
[1725983117188,15.91,135.67,135.56,15.91]
[1725983117459,15.91,135.67,135.54,15.91]
[1725983117460,15.91,135.65,135.54,15.91]
[1725983117605,15.91,135.63,135.54,15.91]
[1725983117787,1.3515,135.62,135.53,0.9945]
[1725983118289,1.3584,135.66,135.54,15.91]
[1725983118481,18.6199,135.66,135.57,15.91]
[1725983118686,18.6199,135.66,135.57,19.67455933]
[1725983118878,18.6199,135.66,135.57,15.91]
[1725983119679,17.69521736,135.65,135.6,3.6869]
[1725983119885,6.80585283,135.64,135.6,3.6869]
[1725983120087,15.91,135.64,135.54,15.91]
[1725983120391,17.69769056,135.63,135.58,3.6875]
[1725983120587,6.80680406,135.62,135.58,3.6875]
[1725983120784,15.91,135.64,135.58,3.6875]
[1725983121093,15.91,135.62,135.58,3.6875]
[1725983121286,6.80682831,135.61,135.58,3.6875]
[1725983121590,15.91,135.62,135.59,3.6873]
[1725983122382,15.91,135.64,135.6,3.687]
[1725983122589,2.7099,135.66,135.57,3.69521845]
[1725983122785,18.6199,135.66,135.57,3.69521845]
[1725983123089,18.6199,135.66,135.57,3.60984066]
[1725983123507,18.6199,135.66,135.61,3.6867]
[1725983123988,18.6199,135.66,135.6,3.6869]
[1725983124194,2.7099,135.66,135.57,3.72049277]
[1725983124695,2.7099,135.66,135.63,3.686]
[1725983124886,2.7099,135.66,135.59,3.68987902]
[1725983124887,1.3515,135.66,135.59,3.68987902]
[1725983125280,8.7222,135.68,135.64,3.6858]
[1725983125484,8.7222,135.68,135.52,15.91]
[1725983125485,7.362,135.67,135.61,3.64783121]
[1725983125683,1.3116,135.71,135.64,15.91]
[1725983126292,1.3116,135.71,135.67,3.685]
[1725983126718,1.3116,135.71,135.64,15.91]
[1725983127193,1.3116,135.71,135.67,3.685]
[1725983127390,1.3116,135.71,135.64,15.91]
[1725983127697,1.3116,135.71,135.67,3.685]
[1725983128101,1.3116,135.71,135.64,15.91]
[1725983128294,1.3116,135.71,135.7,3.6844]
[1725983128593,1.3116,135.71,135.64,15.91]
[1725983128797,1.2839,135.73,135.65,15.91]
[1725983128995,8.6459,135.73,135.59,20.65228695]
[1725983129300,8.6459,135.73,135.64,15.91]
[1725983129510,8.6459,135.73,135.68,3.6848]
[1725983130397,15.91,135.72,135.67,3.6851]
[1725983130700,17.2007,135.72,135.62,15.91]
[1725983132003,17.2007,135.72,135.66,3.6853]
[1725983133238,15.91,135.7,135.59,20.65228695]
[1725983133407,5.15186814,135.69,135.59,20.65228695]
[1725983133609,1.3897,135.69,135.64,3.6858]
[1725983133810,1.3897,135.69,135.59,20.65228695]
[1725983134108,1.3897,135.69,135.61,15.91]
[1725983134710,15.91,135.68,135.63,3.686]
[1725983135007,15.91,135.68,135.59,20.65228695]
[1725983135211,15.91,135.68,135.64,3.6858]
[1725983135617,15.91,135.68,135.59,20.65228695]
[1725983135805,15.91,135.68,135.64,3.6859]
[1725983136489,15.91,135.68,135.63,3.6863]
[1725983136603,15.91,135.66,135.57,19.52152087]
[1725983137004,15.91,135.66,135.61,3.6866]
[1725983137519,15.91,135.64,135.59,3.6872]
[1725983137706,15.91,135.64,135.55,15.91]
[1725983138314,17.2767,135.66,135.55,15.91]
[1725983138817,17.2767,135.66,135.57,15.91]
[1725983139019,1.3297,135.67,135.59,15.91]
[1725983139239,1.3297,135.67,135.64,3.6858]
[1725983139720,1.3297,135.67,135.59,19.58770728]
[1725983140114,1.3297,135.67,135.59,29.15770728]
[1725983140741,8.7517,135.69,135.59,29.15770728]
[1725983140909,8.7517,135.69,135.6,0.9948]
[1725983141112,8.7517,135.69,135.61,25.48]